fUSD/lending_fUSD_20250120
["ID","MTS","AMOUNT","RATE_DAILY","PERIOD"]
[349681130,1737373851611,-2350.02,0.00021546,2]
[349681131,1737373851619,-860.36,0.00021546,2]
[349681132,1737373851629,-2011.03,0.00021546,2]
[349681133,1737373851638,-1277.8,0.00021546,2]
[349681134,1737373851647,-500.0,0.00021546,2]
[349681135,1737373851657,-3135.93,0.00021546,2]
[349681136,1737373851667,-1150.87,0.00021546,2]
[349681137,1737373851676,-500.0,0.00021546,2]
[349681138,1737373851685,-1008.61,0.00021546,2]
[349681139,1737373851697,-500.0,0.00021546,2]
[349681140,1737373851707,-500.0,0.00021546,2]
[349681141,1737373851718,-1242.28,0.00021546,2]
[349681142,1737373851730,-2682.27,0.00021546,2]
[349681143,1737373851746,-1966.68,0.00021546,2]
[349681144,1737373851755,-500.0,0.00021546,2]
[349681145,1737373851765,-973.81,0.00021546,2]
[349681146,1737373851775,-1573.01,0.00021546,2]
[349681147,1737373851783,-724.81,0.00021546,2]
[349681148,1737373851792,-2400.9,0.00021546,2]
[349681149,1737373851801,-500.0,0.00021546,2]
[349681150,1737373851810,-7179.5,0.00021546,2]
[349681151,1737373851819,-1455.19,0.00021546,2]
[349681152,1737373851829,-1337.8,0.00021546,2]
[349681153,1737373851838,-500.0,0.00021546,2]
[349681154,1737373851850,-1012.4,0.00021546,2]
[349681155,1737373851860,-811.61,0.00021546,2]
[349681156,1737373851871,-537.07,0.00021546,2]
[349681157,1737373851881,-2529.65,0.00021546,2]
[349681158,1737373851891,-500.0,0.00021546,2]
[349681159,1737373851899,-500.0,0.00021546,2]
[349681160,1737373851909,-4593.18,0.00021546,2]
[349681161,1737373851920,-1941.34,0.00021546,2]
[349681162,1737373851931,-500.0,0.00021546,2]
[349681163,1737373851940,-561.45641234,0.00021546,2]
[349681164,1737373851950,-3282.68,0.00021546,2]
[349681165,1737373851962,-500.0,0.00021546,2]
[349681166,1737373851971,-500.0,0.00021546,2]
[349681167,1737373851983,-4242.93,0.00021546,2]
[349681168,1737373851994,-609.82,0.00021546,2]
[349681169,1737373852004,-500.0,0.00021546,2]
[349681170,1737373852013,-500.0,0.00021547,2]
[349681171,1737373852023,-178.225795,0.00021547,2]
[349681172,1737373852032,-500.0,0.00021547,2]
[349681173,1737373852041,-512.45546408,0.00021547,2]
[349681174,1737373852050,-500.0,0.00021547,2]
[349681175,1737373852059,-500.0,0.00021547,2]
[349681176,1737373852069,-500.0,0.00021547,2]
[349681177,1737373852078,-500.0,0.00021547,2]
[349681178,1737373852088,-500.0,0.00021547,2]
[349681179,1737373852097,-500.0,0.00021547,2]
[349681180,1737373852109,-500.0,0.00021547,2]
[349681181,1737373852118,-514.8741424,0.00021547,2]
[349681182,1737373852127,-981.26,0.00021547,2]
[349681183,1737373852136,-511.10438094,0.00021547,2]
[349681184,1737373852146,-500.0,0.00021547,2]
[349681185,1737373852155,-500.0,0.00021547,2]
[349681186,1737373852164,-500.0,0.00021547,2]
[349681187,1737373852173,-500.0,0.00021547,2]
[349681188,1737373852183,-500.0,0.00021547,2]
[349681189,1737373852192,-500.0,0.00021547,2]
[349681190,1737373852201,-286.20678857,0.00021547,2]
[349681191,1737373852210,-500.0,0.00021547,2]
[349681192,1737373852219,-500.0,0.00021547,2]
[349681193,1737373852230,-493.50546204,0.00021547,2]
[349681194,1737373852241,-500.0,0.00021547,2]
[349681195,1737373852250,-510.06205926,0.00021547,2]
[349681196,1737373852259,-500.0,0.00021547,2]
[349681197,1737373852268,-500.0,0.00021547,2]
[349681198,1737373852277,-500.0,0.00021547,2]
[349681199,1737373852286,-500.0,0.00021547,2]
[349681200,1737373852295,-500.0,0.00021547,2]
[349681201,1737373852304,-500.0,0.00021547,2]
[349681202,1737373852313,-500.0,0.00021547,2]
[349681203,1737373852322,-509.15170588,0.00021547,2]
[349681204,1737373852331,-509.56668863,0.00021547,2]
[349681205,1737373852340,-500.0,0.00021547,2]
[349681206,1737373852349,-500.0,0.00021547,2]
[349681207,1737373852359,-500.0,0.00021547,2]
[349681208,1737373852368,-621.84,0.00021547,2]
[349681209,1737373852378,-500.0,0.00021547,2]
[349681210,1737373852387,-500.0,0.00021547,2]
[349681211,1737373852395,-500.0,0.00021547,2]
[349681212,1737373852405,-510.85801564,0.00021547,2]
[349681213,1737373852414,-299.830952,0.00021547,2]
[349681214,1737373852423,-299.830952,0.00021547,2]
[349681215,1737373852432,-500.0,0.00021547,2]
[349681216,1737373852441,-299.830952,0.00021547,2]
[349681217,1737373852450,-299.830952,0.00021547,2]
[349681218,1737373852459,-500.0,0.00021547,2]
[349681219,1737373852468,-500.0,0.00021547,2]
[349681220,1737373852477,-500.0,0.00021547,2]
[349681221,1737373852488,-500.0,0.00021547,2]
[349681222,1737373852498,-500.0,0.00021547,2]
[349681223,1737373852507,-219.03934599,0.00021547,2]
[349681224,1737373852516,-500.0,0.00021547,2]
[349681225,1737373852527,-500.0,0.00021547,2]
[349681226,1737373852536,-500.0,0.00021547,2]
[349681227,1737373852546,-540.95,0.00021547,2]
[349681228,1737373852555,-500.0,0.00021547,2]
[349681229,1737373852564,-378.58489391,0.00021547,2]
[349681230,1737373852573,-500.0,0.00021547,2]
[349681231,1737373852582,-500.0,0.00021547,2]
[349681232,1737373852591,-400.35253056,0.00021547,2]
[349681233,1737373852600,-521.34,0.00021547,2]
[349681234,1737373852610,-663.03,0.00021547,2]
[349681235,1737373852619,-500.0,0.00021547,2]
[349681236,1737373852628,-500.0,0.00021547,2]
[349681237,1737373852637,-725.23,0.00021547,2]
[349681238,1737373852647,-500.0,0.00021547,2]
[349681239,1737373852656,-219.470582,0.00021547,2]
[349681240,1737373852665,-500.0,0.00021547,2]
[349681241,1737373852675,-500.0,0.00021547,2]
[349681242,1737373852684,-500.0,0.00021547,2]
[349681243,1737373852694,-151.0,0.00021547,2]
[349681244,1737373852703,-195.981711,0.00021547,2]
[349681245,1737373852713,-500.0,0.00021547,2]
[349681246,1737373852727,-500.0,0.00021547,2]
[349681247,1737373852738,-500.0,0.00021547,2]
[349681248,1737373852747,-500.0,0.00021547,2]
[349681249,1737373852757,-500.0,0.00021547,2]
[349681250,1737373852766,-500.0,0.00021547,2]
[349681251,1737373852776,-568.84,0.00021547,2]
[349681252,1737373852786,-461.40821341,0.00021547,2]
[349681253,1737373852795,-500.0,0.00021547,2]
[349681254,1737373852804,-534.49,0.00021547,2]
[349681255,1737373852813,-511.64,0.00021547,2]
[349681256,1737373852823,-367.876215,0.00021547,2]
[349681257,1737373852832,-557.75,0.00021547,2]
[349681258,1737373852842,-500.0,0.00021547,2]
[349681259,1737373852851,-500.0,0.00021547,2]
[349681260,1737373852860,-591.521017,0.00021547,2]
[349681261,1737373852870,-500.0,0.00021547,2]
[349681262,1737373852879,-656.74,0.00021547,2]
[349681263,1737373852893,-500.0,0.00021547,2]
[349681264,1737373852903,-158.660784,0.00021547,2]
[349681265,1737373852913,-158.660784,0.00021547,2]
[349681266,1737373852927,-158.660784,0.00021547,2]
[349681267,1737373852936,-500.0,0.00021547,2]
[349681268,1737373852945,-158.660784,0.00021547,2]
[349681269,1737373852955,-158.660784,0.00021547,2]
[349681270,1737373852967,-158.660775,0.00021547,2]
[349681271,1737373852977,-500.0,0.00021547,2]
[349681272,1737373852990,-500.0,0.00021547,2]
[349681273,1737373853001,-622.64,0.00021547,2]
[349681274,1737373853133,-500.0,0.00021547,2]
[349681275,1737373853143,-516.03,0.00021547,2]
[349681276,1737373853154,-500.0,0.00021547,2]
[349681277,1737373853165,-500.0,0.00021547,2]
[349681278,1737373853174,-500.0,0.00021547,2]
[349681279,1737373853183,-531.61,0.00021547,2]
[349681280,1737373853192,-500.0,0.00021547,2]
[349681281,1737373853202,-537.26,0.00021547,2]
[349681282,1737373853211,-540.09,0.00021547,2]
[349681283,1737373853220,-500.0,0.00021547,2]
[349681284,1737373853230,-500.0,0.00021547,2]
[349681285,1737373853241,-523.07,0.00021547,2]
[349681286,1737373853251,-586.22082096,0.00021547,2]
[349681287,1737373853260,-500.0,0.00021547,2]
[349681288,1737373853270,-500.0,0.00021547,2]
[349681289,1737373853279,-500.0,0.00021547,2]
[349681290,1737373853288,-500.0,0.00021547,2]
[349681291,1737373853298,-500.0,0.00021547,2]
[349681292,1737373853307,-500.0,0.00021547,2]
[349681293,1737373853317,-750.13,0.00021547,2]
[349681294,1737373853327,-500.0,0.00021547,2]
[349681295,1737373853338,-500.0,0.00021547,2]
[349681296,1737373853347,-500.0,0.00021547,2]
[349681297,1737373853356,-500.0,0.00021547,2]
[349681298,1737373853366,-619.2,0.00021547,2]
[349681299,1737373853375,-544.46,0.00021547,2]
[349681300,1737373853384,-679.904385,0.00021547,2]
[349681301,1737373853394,-679.904393,0.00021547,2]
[349681302,1737373853403,-6151.77,0.00021547,2]
[349681303,1737373853413,-500.0,0.00021547,2]
[349681304,1737373853423,-500.0,0.00021547,2]
[349681305,1737373853432,-736.59,0.00021547,2]
[349681306,1737373853442,-500.0,0.00021547,2]
[349681307,1737373853451,-3149.96,0.00021547,2]
[349681308,1737373853461,-500.0,0.00021547,2]
[349681309,1737373853471,-1157.0,0.00021547,2]
[349681310,1737373853482,-827.93,0.00021547,2]
[349681311,1737373853491,-500.0,0.00021547,2]
[349681312,1737373853501,-961.9,0.00021547,2]
[349681313,1737373853510,-1271.12,0.00021547,2]
[349681314,1737373853519,-1622.16,0.00021547,2]
[349681315,1737373853529,-500.0,0.00021547,2]
[349681316,1737373853540,-500.0,0.00021547,2]
[349681317,1737373853549,-527.7,0.00021547,2]
[349681318,1737373853559,-500.0,0.00021547,2]
[349681319,1737373853568,-1754.97,0.00021547,2]
[349681320,1737373853578,-500.0,0.00021547,2]
[349681321,1737373853587,-500.0,0.00021547,2]
[349681322,1737373853598,-1025.96,0.00021547,2]
[349681323,1737373853607,-601.35,0.00021547,2]
[349681324,1737373853617,-500.0,0.00021547,2]
[349681325,1737373853626,-500.0,0.00021547,2]
[349681326,1737373853636,-623.65,0.00021547,2]
[349681327,1737373853646,-815.64,0.00021547,2]
[349681328,1737373853655,-544.12,0.00021547,2]
[349681329,1737373853667,-619.68,0.00021547,2]
[349681330,1737373853676,-500.0,0.00021547,2]
[349681331,1737373853686,-517.07,0.00021547,2]
[349681332,1737373853696,-500.0,0.00021547,2]
[349681333,1737373853706,-1594.77,0.00021547,2]
[349681334,1737373853716,-500.0,0.00021547,2]
[349681335,1737373853726,-500.0,0.00021547,2]
[349681336,1737373853736,-738.02,0.00021547,2]
[349681337,1737373853746,-516.04,0.00021547,2]
[349681338,1737373853755,-500.0,0.00021547,2]
[349681339,1737373853764,-1050.08,0.00021547,2]
[349681340,1737373853774,-834.52,0.00021547,2]
[349681341,1737373853784,-500.0,0.00021547,2]
[349681342,1737373853793,-500.0,0.00021547,2]
[349681343,1737373853803,-500.0,0.00021547,2]
[349681344,1737373853812,-500.0,0.00021547,2]
[349681345,1737373853822,-4024.61,0.00021547,2]
[349681346,1737373853831,-902.85,0.00021547,2]
[349681347,1737373853841,-3543.63,0.00021547,2]
[349681348,1737373853850,-500.0,0.00021547,2]
[349681349,1737373853859,-3796.91,0.00021547,2]
[349681350,1737373853869,-500.0,0.00021547,2]
[349681351,1737373853879,-501.24,0.00021547,2]
[349681352,1737373853888,-500.0,0.00021547,2]
[349681353,1737373853898,-3838.09,0.00021547,2]
[349681354,1737373853907,-690.51,0.00021547,2]
[349681355,1737373853921,-500.0,0.00021547,2]
[349681356,1737373853931,-500.0,0.00021547,2]
[349681357,1737373853940,-1285.19,0.00021547,2]
[349681358,1737373853950,-592.93,0.00021547,2]
[349681359,1737373853961,-2114.83,0.00021547,2]
[349681360,1737373853971,-574.49,0.00021547,2]
[349681361,1737373853982,-500.0,0.00021547,2]
[349681362,1737373853992,-500.0,0.00021547,2]
[349681363,1737373854001,-1197.72,0.00021547,2]
[349681364,1737373854011,-500.0,0.00021547,2]
[349681365,1737373854020,-4003.39,0.00021547,2]
[349681366,1737373854030,-500.0,0.00021547,2]
[349681367,1737373854039,-612.81,0.00021547,2]
[349681368,1737373854049,-1824.98,0.00021547,2]
[349681369,1737373854059,-500.0,0.00021547,2]
[349681370,1737373854069,-1061.42,0.00021547,2]
[349681371,1737373854079,-500.0,0.00021547,2]
[349681372,1737373854089,-500.0,0.00021547,2]
[349681373,1737373854099,-1633.33,0.00021547,2]
[349681374,1737373854109,-500.0,0.00021547,2]
[349681375,1737373854118,-500.0,0.00021547,2]
[349681376,1737373854128,-1214.34,0.00021547,2]
[349681377,1737373854137,-500.0,0.00021547,2]
[349681378,1737373854147,-500.0,0.00021547,2]
[349681379,1737373854155,-1527.39,0.00021547,2]
[349681380,1737373854165,-500.0,0.00021547,2]
[349681381,1737373854174,-3009.99,0.00021547,2]
[349681382,1737373854183,-500.0,0.00021547,2]
[349681383,1737373854192,-5925.14,0.00021547,2]
[349681384,1737373854203,-1733.62,0.00021547,2]
[349681385,1737373854213,-500.0,0.00021547,2]
[349681386,1737373854224,-500.0,0.00021547,2]
[349681387,1737373854233,-500.0,0.00021547,2]
[349681388,1737373854243,-1980.95,0.00021547,2]
[349681389,1737373854253,-500.0,0.00021547,2]
[349681390,1737373854262,-556.62,0.00021547,2]
[349681391,1737373854272,-743.88,0.00021547,2]
[349681392,1737373854281,-1567.54,0.00021547,2]
[349681393,1737373854291,-500.0,0.00021547,2]
[349681394,1737373854300,-500.0,0.00021547,2]
[349681395,1737373854310,-2410.26,0.00021547,2]
[349681396,1737373854319,-887.41,0.00021547,2]
[349681397,1737373854329,-500.0,0.00021547,2]
[349681398,1737373854339,-510.1169957,0.00021547,2]
[349681399,1737373854350,-2464.73,0.00021547,2]
[349681400,1737373854360,-358.94599176,0.00021555,2]
[349681401,1737373854369,-299.830952,0.00021566,2]
[349681402,1737373854379,-299.830952,0.00021566,2]
[349681403,1737373854388,-960.31216546,0.00021567,2]
[349681404,1737373854400,-310.45502609,0.00021567,2]
[349681405,1737373854409,-1801.06591399,0.00021589,2]
[349681406,1737373854419,-358.94599176,0.0002159,2]
[349681407,1737373854429,-172.75,0.00021595,2]
[349681408,1737373854439,-358.94599176,0.00021624,3]
[349681409,1737373854448,-1000.0,0.00021644,3]
[349681410,1737373854458,-1000.0,0.00021644,3]
[349681411,1737373854467,-1000.0,0.00021644,3]
[349681412,1737373854477,-1000.0,0.00021644,3]
[349681413,1737373854487,-1000.0,0.00021644,3]
[349681414,1737373854496,-1000.0,0.00021644,3]
[349681415,1737373854505,-1000.0,0.00021644,3]
[349681416,1737373854514,-1000.0,0.00021644,3]
[349681417,1737373854523,-1000.0,0.00021644,3]
[349681418,1737373854533,-1000.0,0.00021644,3]
[349681419,1737373854542,-1000.0,0.00021644,3]
[349681420,1737373854551,-1000.0,0.00021644,3]
[349681421,1737373854560,-1000.0,0.00021644,3]
[349681422,1737373854570,-1000.0,0.00021644,3]
[349681423,1737373854579,-759.0,0.00021644,3]
[349681424,1737373854588,-1000.0,0.00021644,3]
[349681425,1737373854598,-1000.0,0.00021644,3]
[349681426,1737373854607,-1000.0,0.00021644,3]
[349681427,1737373854617,-1000.0,0.00021644,3]
[349681428,1737373854626,-1000.0,0.00021644,3]
[349681429,1737373854635,-1000.0,0.00021644,3]
[349681430,1737373854645,-1000.0,0.00021644,3]
[349681431,1737373854654,-1000.0,0.00021644,3]
[349681432,1737373854663,-1000.0,0.00021644,3]
[349681433,1737373854672,-1000.0,0.00021644,3]
[349681434,1737373854682,-1000.0,0.00021644,3]
[349681435,1737373854691,-1000.0,0.00021644,3]
[349681436,1737373854701,-1000.0,0.00021644,3]
[349681437,1737373854710,-1000.0,0.00021644,3]
[349681438,1737373854720,-1000.0,0.00021644,3]
[349681439,1737373854730,-1000.0,0.00021644,3]
[349681440,1737373854741,-1000.0,0.00021644,3]
[349681441,1737373854752,-1000.0,0.00021644,3]
[349681442,1737373854763,-1000.0,0.00021644,3]
[349681443,1737373854772,-1000.0,0.00021644,3]
[349681444,1737373854782,-1000.0,0.00021644,3]
[349681445,1737373854791,-1000.0,0.00021644,3]
[349681446,1737373854801,-1000.0,0.00021644,3]
[349681447,1737373854810,-1000.0,0.00021644,3]
[349681448,1737373854822,-1000.0,0.00021644,3]
[349681449,1737373854832,-1000.0,0.00021644,3]
[349681450,1737373854842,-1000.0,0.00021644,3]
[349681451,1737373854851,-1000.0,0.00021644,3]
[349681452,1737373854861,-1000.0,0.00021644,3]
[349681453,1737373854871,-358.94599176,0.00021659,3]
[349681454,1737373854881,-405395.49331667,0.0002167,2]
[349681455,1737373854891,-500.58072799,0.00021673,2]
[349681456,1737373854900,-323.5489692,0.00021673,2]
[349681457,1737373854911,-960.31216546,0.00021678,2]
[349681458,1737373854924,-299.830952,0.00021678,2]
[349681459,1737373854934,-299.830952,0.00021678,2]
[349681460,1737373854944,-358.94599176,0.00021693,3]
[349681461,1737373854954,-204.0,0.000217,2]
[349681462,1737373854965,-926.49555845,0.000217,2]
[349681463,1737373854975,-781.8847758,0.000217,2]
[349681464,1737373854984,-166.75419375,0.000217,2]
[349681465,1737373854996,-164.71763715,0.000217,2]
[349681466,1737373855005,-358.94599176,0.00021728,3]
[349681467,1737373855014,-150.0,0.00021729,2]
[349681468,1737373855024,-310.45502609,0.00021733,2]
[349681469,1737373855034,-150.0,0.0002174,2]
[349681470,1737373855043,-150.0,0.00021741,2]
[349681471,1737373855053,-781.88477577,0.0002175,2]
[349681472,1737373855063,-358.94599176,0.00021762,3]
[349681473,1737373855166,-206.64425441,0.00021773,2]
[349681474,1737373855176,-6754.0,0.00021781,2]
[349681475,1737373855186,-150.0,0.00021781,4]
[349681476,1737373855195,-150.0,0.00021781,4]
[349681477,1737373855205,-150.0,0.00021781,4]
[349681478,1737373855215,-150.0,0.00021787,2]
[349681479,1737373855224,-960.31216546,0.00021789,2]
[349681480,1737373855234,-150.0,0.00021791,2]
[349681481,1737373855244,-201.0,0.00021793,2]
[349681482,1737373855254,-358.94599176,0.00021797,3]
[349681483,1737373855263,-500.0,0.00021799,2]
[349681484,1737373855273,-500.0,0.00021799,2]
[349681485,1737373855283,-500.0,0.00021799,2]
[349681486,1737373855292,-500.0,0.00021799,2]
[349681487,1737373855302,-500.0,0.00021799,2]
[349681488,1737373855312,-40000.0,0.000218,2]
[349681489,1737373855321,-24923.17405,0.000218,2]
[349681490,1737373855332,-24923.174044,0.000218,2]
[349681491,1737373855341,-24923.174044,0.000218,2]
[349681492,1737373855351,-24923.174044,0.000218,2]
[349681493,1737373855362,-24923.174044,0.000218,2]
[349681494,1737373855372,-24923.174044,0.000218,2]
[349681495,1737373855381,-24923.174044,0.000218,2]
[349681496,1737373855390,-24923.174044,0.000218,2]
[349681497,1737373855399,-24923.174044,0.000218,2]
[349681498,1737373855408,-24923.174044,0.000218,2]
[349681499,1737373855417,-24923.174044,0.000218,2]
[349681500,1737373855426,-40063.14632129,0.000218,2]
[349681501,1737373855438,-92642.9559165,0.000218,2]
[349681502,1737373855446,-781.88477577,0.000218,2]
[349681503,1737373855455,-166.75419373,0.000218,2]
[349681504,1737373855465,-299.830952,0.000218,2]
[349681505,1737373855475,-299.830951,0.000218,2]
[349681506,1737373855484,-500.0,0.0002182,2]
[349681507,1737373855493,-500.0,0.0002182,2]
[349681508,1737373855502,-778.66,0.0002182,2]
[349681509,1737373855513,-500.0,0.0002182,2]
[349681510,1737373855524,-500.0,0.0002182,2]
[349681511,1737373855533,-1011.22,0.0002182,2]
[349681512,1737373855543,-500.0,0.0002182,2]
[349681513,1737373855552,-1310.75,0.0002182,2]
[349681514,1737373855561,-821.77,0.0002182,2]
[349681515,1737373855571,-500.0,0.0002182,2]
[349681516,1737373855580,-500.0,0.0002182,2]
[349681517,1737373855589,-1000.0,0.0002182,2]
[349681518,1737373855598,-3677.48,0.0002182,2]
[349681519,1737373855607,-535.72,0.0002182,2]
[349681520,1737373855616,-516.31,0.0002182,2]
[349681521,1737373855625,-2175.64,0.0002182,2]
[349681522,1737373855634,-500.0,0.0002182,2]
[349681523,1737373855643,-1496.99,0.0002182,2]
[349681524,1737373855652,-500.0,0.0002182,2]
[349681525,1737373855662,-2515.19,0.0002182,2]
[349681526,1737373855671,-500.0,0.0002182,2]
[349681527,1737373855680,-1777.17,0.0002182,2]
[349681528,1737373855689,-500.0,0.0002182,2]
[349681529,1737373855698,-1494.33,0.0002182,2]
[349681530,1737373855707,-874.53,0.0002182,2]
[349681531,1737373855716,-3959.56,0.0002182,2]
[349681532,1737373855725,-2350.02,0.0002182,2]
[349681533,1737373855735,-860.36,0.0002182,2]
[349681534,1737373855744,-2011.03,0.0002182,2]
[349681535,1737373855754,-1277.8,0.0002182,2]
[349681536,1737373855763,-500.0,0.0002182,2]
[349681537,1737373855772,-3135.93,0.0002182,2]
[349681538,1737373855781,-1150.87,0.0002182,2]
[349681539,1737373855790,-1008.61,0.0002182,2]
[349681540,1737373855800,-500.0,0.0002182,2]
[349681541,1737373855809,-1242.28,0.0002182,2]
[349681542,1737373855818,-2682.27,0.0002182,2]
[349681543,1737373855828,-1966.68,0.0002182,2]
[349681544,1737373855837,-500.0,0.0002182,2]
[349681545,1737373855847,-973.81,0.0002182,2]
[349681546,1737373855856,-1573.01,0.0002182,2]
[349681547,1737373855866,-724.81,0.0002182,2]
[349681548,1737373855875,-2400.9,0.0002182,2]
[349681549,1737373855885,-500.0,0.0002182,2]
[349681550,1737373855894,-7179.5,0.0002182,2]
[349681551,1737373855903,-1455.19,0.0002182,2]
[349681552,1737373855913,-1337.8,0.0002182,2]
[349681553,1737373855926,-500.0,0.0002182,2]
[349681554,1737373855935,-1012.4,0.0002182,2]
[349681555,1737373855944,-811.61,0.0002182,2]
[349681556,1737373855955,-537.07,0.0002182,2]
[349681557,1737373855964,-2529.65,0.0002182,2]
[349681558,1737373855973,-500.0,0.0002182,2]
[349681559,1737373855982,-498.37592804,0.0002182,2]
[349681560,1737373855994,-4593.18,0.0002182,2]
[349681561,1737373856004,-1941.34,0.0002182,2]
[349681562,1737373856014,-500.0,0.0002182,2]
[349681563,1737373856023,-3282.68,0.0002182,2]
[349681564,1737373856033,-365.07208135,0.0002182,2]
[349681565,1737373856042,-500.0,0.0002182,2]
[349681566,1737373856052,-4242.93,0.0002182,2]
[349681567,1737373856063,-609.82,0.0002182,2]
[349681568,1737373856073,-500.0,0.0002182,2]
[349681569,1737373856083,-500.0,0.00021821,2]
[349681570,1737373856092,-500.0,0.00021821,2]
[349681571,1737373856102,-513.74906392,0.00021821,2]
[349681572,1737373856111,-500.0,0.00021821,2]
[349681573,1737373856121,-500.0,0.00021821,2]
[349681574,1737373856130,-482.49208442,0.00021821,2]
[349681575,1737373856140,-510.63219223,0.00021821,2]
[349681576,1737373856150,-500.0,0.00021821,2]
[349681577,1737373856159,-500.0,0.00021821,2]
[349681578,1737373856169,-981.26,0.00021821,2]
[349681579,1737373856178,-500.0,0.00021821,2]
[349681580,1737373856188,-500.0,0.00021821,2]
[349681581,1737373856197,-500.0,0.00021821,2]
[349681582,1737373856207,-500.0,0.00021821,2]
[349681583,1737373856216,-500.0,0.00021821,2]
[349681584,1737373856226,-500.0,0.00021821,2]
[349681585,1737373856236,-500.0,0.00021821,2]
[349681586,1737373856246,-500.0,0.00021821,2]
[349681587,1737373856255,-500.0,0.00021821,2]
[349681588,1737373856265,-500.0,0.00021821,2]
[349681589,1737373856274,-500.0,0.00021821,2]
[349681590,1737373856284,-500.0,0.00021821,2]
[349681591,1737373856294,-500.0,0.00021821,2]
[349681592,1737373856303,-521.41364468,0.00021821,2]
[349681593,1737373856313,-500.0,0.00021821,2]
[349681594,1737373856323,-500.0,0.00021821,2]
[349681595,1737373856332,-520.76310387,0.00021821,2]
[349681596,1737373856341,-500.0,0.00021821,2]
[349681597,1737373856351,-504.98481344,0.00021821,2]
[349681598,1737373856361,-621.84,0.00021821,2]
[349681599,1737373856370,-495.91354889,0.00021821,2]
[349681600,1737373856380,-319.69047252,0.00021821,2]
[349681601,1737373856389,-500.0,0.00021821,2]
[349681602,1737373856399,-523.08251663,0.00021821,2]
[349681603,1737373856409,-490.03852584,0.00021821,2]
[349681604,1737373856418,-500.0,0.00021821,2]
[349681605,1737373856427,-500.0,0.00021821,2]
[349681606,1737373856436,-500.0,0.00021821,2]
[349681607,1737373856446,-511.79118979,0.00021821,2]
[349681608,1737373856455,-500.0,0.00021821,2]
[349681609,1737373856464,-500.0,0.00021821,2]
[349681610,1737373856474,-543.48639508,0.00021821,2]
[349681611,1737373856483,-500.0,0.00021821,2]
[349681612,1737373856496,-500.0,0.00021821,2]
[349681613,1737373856505,-500.0,0.00021821,2]
[349681614,1737373856515,-521.34,0.00021821,2]
[349681615,1737373856524,-663.03,0.00021821,2]
[349681616,1737373856533,-500.0,0.00021821,2]
[349681617,1737373856542,-500.0,0.00021821,2]
[349681618,1737373856551,-725.23,0.00021821,2]
[349681619,1737373856561,-500.0,0.00021821,2]
[349681620,1737373856571,-500.0,0.00021821,2]
[349681621,1737373856580,-500.0,0.00021821,2]
[349681622,1737373856590,-500.0,0.00021821,2]
[349681623,1737373856599,-500.0,0.00021821,2]
[349681624,1737373856608,-500.0,0.00021821,2]
[349681625,1737373856618,-625.61011774,0.00021821,2]
[349681626,1737373856627,-500.0,0.00021821,2]
[349681627,1737373856637,-511.41887525,0.00021821,2]
[349681628,1737373856646,-500.0,0.00021821,2]
[349681629,1737373856656,-568.84,0.00021821,2]